{"text_format":"3","workbook":"xlsx","n_sheets":1,"sheets":["附件5"],"not_rendered":{"defined_names":2},"read":"whole","date_system":"1900"}

{"sheet":"附件5","index":0,"n_rows":57,"n_cols":20,"rows_kept":57,"merged":[[1,0,1,19],[2,0,2,19],[55,0,55,1],[56,0,56,19]]}
["附件1"]
["凉州区2023年“特岗计划”学科岗位需求计划表"]
[]
["设岗学校","学校类型","合计","语文","数学","英语","物理","化学","地理","生物","政治","音乐","美术","体育","心理学","小学全科","岗位类型","户籍要求","学历要求","备注"]
[{"$nulls":3},"文科类","理科类","文科类","理科类","理科类","文科类","理科类","文科类","音体美类","音体美类","音体美类","文科类","文科6名\n理科6名",{"$nulls":3},"试卷类型"]
["凉州区永昌镇和寨九年制学校","九年制学校",{"$f":"SUM(D6:P6)","v":3},1,1,null,1,{"$nulls":9},"初中岗","凉州区户籍或高考时家庭户籍在凉州区的考生","本科及以上学历、学士学位及以上"]
["凉州区永昌镇永昌九年制学校","九年制学校",3,1,1,1,{"$nulls":10},"初中岗","凉州区户籍或高考时家庭户籍在凉州区的考生","本科及以上学历、学士学位及以上"]
["凉州区黄羊镇九年制学校","九年制学校",4,1,null,2,null,1,{"$nulls":8},"初中岗","凉州区户籍或高考时家庭户籍在凉州区的考生","本科及以上学历、学士学位及以上"]
["凉州区黄羊镇新店小学","完全\n小学",2,1,{"$nulls":11},"1（文科）","小学岗","凉州区户籍或高考时家庭户籍在凉州区的考生","本科及以上学历、学士学位及以上"]
["凉州区黄羊镇靖边街小学","完全\n小学",2,null,1,{"$nulls":10},"1（理科）","小学岗","凉州区户籍或高考时家庭户籍在凉州区的考生","本科及以上学历、学士学位及以上"]
["凉州区黄羊镇土塔小学","完全\n小学",1,{"$nulls":12},"1（文科）","小学岗","凉州区户籍或高考时家庭户籍在凉州区的考生","本科及以上学历、学士学位及以上"]
["凉州区黄羊镇三河小学","完全\n小学",1,{"$nulls":12},"1（理科）","小学岗","凉州区户籍或高考时家庭户籍在凉州区的考生","本科及以上学历、学士学位及以上"]
["武威第十六中学","九年制学校",4,1,1,{"$nulls":3},1,null,1,{"$nulls":5},"初中岗","凉州区户籍或高考时家庭户籍在凉州区的考生","本科及以上学历、学士学位及以上"]
["凉州区双城镇南安九年制学校","九年制学校",2,{"$nulls":6},1,{"$nulls":4},1,null,"初中岗","凉州区户籍或高考时家庭户籍在凉州区的考生","本科及以上学历、学士学位及以上"]
["凉州区古城镇九年制学校","九年制学校",4,null,2,1,null,1,{"$nulls":8},"初中岗","凉州区户籍或高考时家庭户籍在凉州区的考生","本科及以上学历、学士学位及以上"]
["凉州区金羊镇九年制学校","九年制学校",3,{"$nulls":8},1,1,1,null,null,"初中岗","凉州区户籍或高考时家庭户籍在凉州区的考生","本科及以上学历、学士学位及以上"]
["凉州区金羊镇松涛小学","完全\n小学",1,{"$nulls":12},"1（文科）","小学岗","凉州区户籍或高考时家庭户籍在凉州区的考生","本科及以上学历、学士学位及以上"]
["凉州区金塔镇九年制学校","九年制学校",4,2,1,1,{"$nulls":10},"初中岗","凉州区户籍或高考时家庭户籍在凉州区的考生","本科及以上学历、学士学位及以上"]
["武威第十七中学","九年制学校",5,2,2,1,{"$nulls":10},"初中岗","凉州区户籍或高考时家庭户籍在凉州区的考生","本科及以上学历、学士学位及以上"]
["凉州区怀安镇九年制学校","九年制学校",4,1,2,null,1,{"$nulls":9},"初中岗","凉州区户籍或高考时家庭户籍在凉州区的考生","本科及以上学历、学士学位及以上"]
["凉州区洪祥镇九年制学校","九年制学校",2,1,1,{"$nulls":11},"初中岗","凉州区户籍或高考时家庭户籍在凉州区的考生","本科及以上学历、学士学位及以上"]
["凉州区洪祥镇王家庄小学","完全\n小学",1,{"$nulls":12},"1（文科）","小学岗","凉州区户籍或高考时家庭户籍在凉州区的考生","本科及以上学历、学士学位及以上"]
["凉州区洪祥镇陈春小学","完全\n小学",1,{"$nulls":12},"1（理科）","小学岗","凉州区户籍或高考时家庭户籍在凉州区的考生","本科及以上学历、学士学位及以上"]
["凉州区洪祥镇陈家沟小学","完全\n小学",1,{"$nulls":12},"1（文科）","小学岗","凉州区户籍或高考时家庭户籍在凉州区的考生","本科及以上学历、学士学位及以上"]
["凉州区四坝镇九年制学校","九年制学校",2,1,1,{"$nulls":11},"初中岗","凉州区户籍或高考时家庭户籍在凉州区的考生","本科及以上学历、学士学位及以上"]
["凉州区丰乐镇九年制学校","九年制学校",2,1,{"$nulls":7},1,{"$nulls":4},"初中岗","凉州区户籍或高考时家庭户籍在凉州区的考生","本科及以上学历、学士学位及以上"]
["凉州区丰乐镇丰乐小学","完全\n小学",2,1,{"$nulls":11},"1（文科）","小学岗","凉州区户籍或高考时家庭户籍在凉州区的考生","本科及以上学历、学士学位及以上"]
["武威第四中学","九年制学校",3,{"$nulls":8},1,1,1,null,null,"初中岗","凉州区户籍或高考时家庭户籍在凉州区的考生","本科及以上学历、学士学位及以上"]
["武威第五中学","九年制学校",3,1,2,{"$nulls":11},"小学岗","凉州区户籍或高考时家庭户籍在凉州区的考生","本科及以上学历、学士学位及以上"]
["武威第二十中学","九年制学校",1,{"$nulls":3},1,{"$nulls":9},"初中岗","凉州区户籍或高考时家庭户籍在凉州区的考生","本科及以上学历、学士学位及以上"]
["武威第二十中学","九年制学校",2,{"$nulls":10},1,null,"1（理科）","小学岗","凉州区户籍或高考时家庭户籍在凉州区的考生","本科及以上学历、学士学位及以上"]
["凉州区黄羊实验小学","完全\n小学",3,null,1,{"$nulls":6},1,{"$nulls":3},"1（理科）","小学岗","凉州区户籍或高考时家庭户籍在凉州区的考生","本科及以上学历、学士学位及以上"]
["凉州区中坝镇九年制学校","九年制学校",2,null,1,null,1,{"$nulls":9},"初中岗","凉州区户籍或高考时家庭户籍在凉州区的考生","本科及以上学历、学士学位及以上"]
["凉州区中坝镇中坝小学","完全\n小学",1,null,null,1,{"$nulls":10},"小学岗","凉州区户籍或高考时家庭户籍在凉州区的考生","本科及以上学历、学士学位及以上"]
["武威第十四中学","初级中学",3,1,1,null,1,{"$nulls":9},"初中岗","凉州区户籍或高考时家庭户籍在凉州区的考生","本科及以上学历、学士学位及以上"]
["凉州区五和镇五和小学","完全\n小学",1,null,1,{"$nulls":11},"小学岗","凉州区户籍或高考时家庭户籍在凉州区的考生","本科及以上学历、学士学位及以上"]
["凉州区五和镇支寨小学","完全\n小学",1,1,{"$nulls":12},"小学岗","凉州区户籍或高考时家庭户籍在凉州区的考生","本科及以上学历、学士学位及以上"]
["凉州区新华镇九年制学校","九年制学校",2,null,1,1,{"$nulls":10},"初中岗","凉州区户籍或高考时家庭户籍在凉州区的考生","本科及以上学历、学士学位及以上"]
["凉州区柏树镇九年制学校","九年制学校",3,1,1,1,{"$nulls":10},"初中岗","凉州区户籍或高考时家庭户籍在凉州区的考生","本科及以上学历、学士学位及以上"]
["凉州区松树镇槐树小学","完全\n小学",2,null,1,{"$nulls":10},"1（理科）","小学岗","凉州区户籍或高考时家庭户籍在凉州区的考生","本科及以上学历、学士学位及以上"]
["凉州区韩佐镇九年制学校","九年制学校",2,2,{"$nulls":12},"初中岗","凉州区户籍或高考时家庭户籍在凉州区的考生","本科及以上学历、学士学位及以上"]
["凉州区吴家井镇九年制学校","九年制学校",3,1,{"$nulls":4},1,{"$nulls":3},1,{"$nulls":3},"初中岗","凉州区户籍或高考时家庭户籍在凉州区的考生","本科及以上学历、学士学位及以上"]
["凉州区九墩镇九年制学校","九年制学校",2,null,1,{"$nulls":7},1,{"$nulls":3},"初中岗","凉州区户籍或高考时家庭户籍在凉州区的考生","本科及以上学历、学士学位及以上"]
["凉州区清水镇九年制学校","九年制学校",1,1,{"$nulls":12},"初中岗","凉州区户籍或高考时家庭户籍在凉州区的考生","本科及以上学历、学士学位及以上"]
["凉州区康宁镇九年制学校","九年制学校",2,null,1,{"$nulls":6},1,{"$nulls":4},"初中岗","凉州区户籍或高考时家庭户籍在凉州区的考生","本科及以上学历、学士学位及以上"]
["武威第二十二中学","九年制学校",3,1,1,{"$nulls":8},1,null,null,"初中岗","凉州区户籍或高考时家庭户籍在凉州区的考生","本科及以上学历、学士学位及以上"]
["武威第二十二中学","九年制学校",2,1,1,{"$nulls":11},"小学岗","凉州区户籍或高考时家庭户籍在凉州区的考生","本科及以上学历、学士学位及以上"]
["凉州区西营镇西营九年制学校","九年制学校",3,1,1,{"$nulls":3},1,{"$nulls":7},"初中岗","凉州区户籍或高考时家庭户籍在凉州区的考生","本科及以上学历、学士学位及以上"]
["凉州区武威南铁路第二小学","完全\n小学",1,{"$nulls":10},1,null,null,"小学岗","凉州区户籍或高考时家庭户籍在凉州区的考生","本科及以上学历、学士学位及以上"]
["凉州区谢河镇九年制学校","九年制学校",1,1,{"$nulls":12},"初中岗","凉州区户籍或高考时家庭户籍在凉州区的考生","本科及以上学历、学士学位及以上"]
["凉州区金山镇九年制学校","九年制学校",1,1,{"$nulls":12},"初中岗","凉州区户籍或高考时家庭户籍在凉州区的考生","本科及以上学历、学士学位及以上"]
["凉州区高坝镇十三里堡九年制学校","九年制学校",2,null,1,null,null,1,{"$nulls":8},"初中岗","凉州区户籍或高考时家庭户籍在凉州区的考生","本科及以上学历、学士学位及以上"]
["凉州区高坝镇建设九年制学校","九年制学校",2,null,null,1,1,{"$nulls":9},"初中岗","凉州区户籍或高考时家庭户籍在凉州区的考生","本科及以上学历、学士学位及以上"]
["凉州区高坝镇六坝九年制学校","九年制学校",2,null,null,1,null,1,{"$nulls":8},"初中岗","凉州区户籍或高考时家庭户籍在凉州区的考生","本科及以上学历、学士学位及以上"]
["凉州区高坝镇高坝九年制学校","九年制学校",2,{"$nulls":8},1,null,1,null,null,"初中岗","凉州区户籍或高考时家庭户籍在凉州区的考生","本科及以上学历、学士学位及以上"]
["县（市、区）合计",null,{"$f":"SUM(C6:C55)","v":110},27,28,11,6,4,3,1,1,6,4,6,1,12]
["说明：请报考考生结合自身条件选择合适岗位进行报考。"]